bitfinex/quotes_SOLUSD_20240813
["timestamp","ask_amount","ask_price","bid_price","bid_amount"]
[1723583461816,7.09418,146.13,146.05,12.61]
[1723583462233,7.09418,146.13,146.03,15.943]
[1723583462437,0.12549,146.14,146.07,12.61]
[1723583463519,0.25098,146.14,146.07,12.61]
[1723583464225,0.25098,146.13,146.07,12.61]
[1723583465042,0.12549,146.13,146.07,12.61]
[1723583465244,15.4847,146.15,146.09,12.61]
[1723583466722,22.327,146.15,146.04,0.12549]
[1723583466928,22.327,146.15,146.08,12.61]
[1723583467741,0.25098,146.14,146.08,12.61]
[1723583467944,7.09368,146.14,146.08,12.61]
[1723583468139,0.37647,146.13,146.08,12.61]
[1723583468351,0.12549,146.14,146.08,12.61]
[1723583469143,15.4847,146.15,146.08,12.61]
[1723583469938,0.12549,146.14,146.08,12.61]
[1723583470148,22.327,146.15,146.08,12.61]
[1723583470545,15.4847,146.15,146.08,12.61]
[1723583473458,22.327,146.15,146.08,12.61]
[1723583475865,45.37647,146.14,146.03,23.54057062]
[1723583476066,45.37647,146.14,146.06,12.61]
[1723583476379,52.21927,146.14,146.07,20.0]
[1723583479638,6.17569,146.13,146.07,20.0]
[1723583482167,6.0502,146.13,146.07,20.0]
[1723583484250,12.8934,146.13,146.07,20.0]
[1723583484448,12.8934,146.13,146.06,20.0]
[1723583485261,6.0502,146.13,146.06,20.0]
[1723583486565,6.0502,146.13,146.06,12.61]
[1723583486767,6.0502,146.13,146.07,20.0]
[1723583488076,6.0502,146.13,146.08,12.61]
[1723583489571,6.0502,146.13,146.07,20.0]
[1723583494470,7.13504608,146.14,146.08,12.61]
[1723583494776,15.4847,146.15,146.08,12.61]
[1723583500894,15.4847,146.15,146.09,20.0]
[1723583504172,27.81799826,146.15,146.09,20.0]
[1723583507265,15.4847,146.15,146.09,20.0]
[1723583510477,27.8177322,146.15,146.09,20.0]
[1723583512494,15.4847,146.15,146.09,20.0]
[1723583516392,27.81792861,146.15,146.09,20.0]
[1723583517699,0.37647,146.14,146.09,20.0]
[1723583518032,45.50196,146.14,146.09,20.0]
[1723583518710,22.3269,146.15,146.09,20.0]
[1723583518898,27.81804201,146.15,146.09,20.0]
[1723583521291,15.4847,146.15,146.09,20.0]
[1723583521718,27.8180392,146.15,146.09,20.0]
[1723583523740,34.6602392,146.15,146.03,18.74432476]
[1723583523897,12.61,146.13,146.04,8.22227615]
[1723583524096,45.37647,146.12,146.05,28.22227615]
[1723583524335,45.37647,146.12,146.05,20.0]
[1723583524513,45.37647,146.12,146.04,20.0]
[1723583525720,15.2539,146.11,146.04,20.0]
[1723583530731,15.2539,146.11,146.03,12.61]
[1723583531028,15.2539,146.11,146.04,20.0]
[1723583535041,6.20499,146.1,146.04,20.0]
[1723583536929,6.0795,146.1,146.04,20.0]
[1723583538532,6.0795,146.1,146.05,12.61]
[1723583539141,6.0795,146.1,146.05,13.9789838]
[1723583539319,6.0795,146.1,146.07,12.61]
[1723583539743,6.0795,146.1,146.08,1.36888205]
[1723583539911,15.2539,146.11,146.08,1.36888205]
[1723583540328,15.2539,146.11,146.07,12.61]
[1723583541953,15.2539,146.11,146.08,1.36887672]
[1723583542663,15.2539,146.11,146.05,12.61]
[1723583545971,15.2539,146.11,146.07,12.61]
[1723583551388,15.2539,146.11,146.05,12.61]
[1723583551558,15.2539,146.11,146.06,20.0]
[1723583553686,15.2539,146.11,146.04,12.61]
[1723583553902,15.2539,146.11,146.05,20.0]
[1723583554192,22.098,146.11,146.05,20.0]
[1723583554753,15.2539,146.11,146.05,20.0]
[1723583556897,15.2539,146.11,146.01,8.95623234]
[1723583556898,0.25098,146.1,146.01,15.34283234]
[1723583557200,45.25098,146.1,146.02,20.0]
[1723583557399,0.25098,146.1,146.02,20.0]
[1723583557572,45.25098,146.1,146.02,20.0]
[1723583558888,52.09558,146.1,146.02,20.0]
[1723583559062,0.37647,146.09,146.02,20.0]
[1723583561094,45.12549,146.1,146.03,13.97928574]
[1723583561391,15.2539,146.11,146.05,12.61]
[1723583563604,22.098,146.11,146.05,12.61]
[1723583564102,15.2539,146.11,146.05,12.61]
[1723583564281,15.2539,146.11,146.07,12.61]
[1723583571798,6.4354,146.13,146.07,12.61]
[1723583572004,6.4354,146.13,146.09,12.61]
[1723583574114,16.5188,146.15,146.09,12.61]
[1723583580346,0.25098,146.14,146.05,19.36198551]
[1723583580654,0.25098,146.14,146.07,12.61]
[1723583580811,0.12549,146.14,146.08,21.36879589]
[1723583581011,0.25098,146.14,146.08,21.36879589]
[1723583581448,16.5188,146.15,146.09,13.97878673]
[1723583581621,16.5188,146.15,146.11,12.61]
[1723583585524,16.5188,146.15,146.09,12.61]
[1723583585731,16.5188,146.15,146.1,20.0]
[1723583586238,16.5188,146.15,146.09,20.0]
[1723583590936,23.3612,146.15,146.09,20.0]
[1723583591240,23.3612,146.15,146.06,20.0]
[1723583591241,45.37647,146.14,146.06,20.0]
[1723583591425,45.50196,146.14,146.06,20.0]
[1723583592152,0.50196,146.14,146.07,12.61]
[1723583592357,0.50196,146.14,146.08,20.0]
[1723583593616,0.12549,146.14,146.08,20.0]
[1723583593822,16.5188,146.15,146.08,20.0]
[1723583595857,23.3611,146.15,146.08,20.0]
[1723583596229,23.3611,146.15,146.07,12.61]
[1723583596858,0.12549,146.13,146.07,12.61]
[1723583597163,0.37647,146.13,146.07,12.61]
[1723583598135,52.26353897,146.14,146.07,12.61]
[1723583598844,52.26353897,146.14,146.08,1.36888241]
[1723583599028,52.26353897,146.14,146.07,12.61]
[1723583599225,0.12549,146.13,146.04,12.61]
[1723583599426,7.21977,146.13,146.05,20.0]
[1723583599829,45.0,146.12,146.05,20.0]
[1723583600950,45.37647,146.13,146.05,20.0]
[1723583602738,7.26353897,146.14,146.06,12.61]
[1723583603863,16.5188,146.15,146.08,12.61]
[1723583604272,16.5188,146.15,146.05,20.0]
[1723583604437,16.5188,146.15,146.04,0.12549]
[1723583604438,16.5188,146.15,146.08,12.61]
[1723583604768,23.3611,146.15,146.08,12.61]
[1723583605356,45.0,146.14,146.08,12.61]
[1723583605544,16.5188,146.15,146.08,12.61]
[1723583606233,28.85267984,146.15,146.08,12.61]
[1723583607046,0.12549,146.14,146.03,20.0]
[1723583607242,0.50196,146.14,146.07,12.61]
[1723583607444,45.50196,146.14,146.07,12.61]
[1723583610773,52.34486,146.14,146.07,12.61]
[1723583612075,52.34486,146.14,146.04,45.12549]
[1723583612252,52.34486,146.14,146.06,12.61]
[1723583614080,45.50196,146.14,146.06,12.61]
[1723583614555,52.63852893,146.14,146.06,12.61]
[1723583615467,59.48142893,146.14,146.06,12.61]
[1723583615662,12.33500632,146.13,146.06,12.61]
[1723583615973,7.13656893,146.14,146.08,12.61]
[1723583616278,16.5188,146.15,146.08,12.61]
[1723583616465,16.5188,146.15,146.1,12.61]
[1723583619375,15.0354,146.19,146.12,12.61]
[1723583619881,29.01147913,146.19,146.12,12.61]
[1723583620064,34.50141773,146.19,146.12,12.61]
[1723583620269,41.34181773,146.19,146.12,12.61]
[1723583621861,29.01147913,146.19,146.12,12.61]
[1723583623576,22.17107913,146.19,146.12,12.61]
[1723583624182,22.17107913,146.19,146.14,12.61]
[1723583624673,15.0354,146.19,146.14,12.61]
[1723583624879,6.2232,146.2,146.14,12.61]
[1723583625083,7.13468591,146.21,146.16,12.61]
[1723583625258,6.8403,146.2,146.12,16.0655]
[1723583625469,7.13468591,146.21,146.13,20.0]
[1723583625763,23.225,146.19,146.13,20.0]
[1723583626088,23.225,146.19,146.12,12.61]
[1723583626295,52.34296,146.18,146.12,12.61]
[1723583626579,45.50196,146.18,146.08,16.0655]
[1723583626766,45.50196,146.18,146.09,32.61]
[1723583626952,6.8414,146.17,146.09,32.61]
[1723583627157,45.0,146.16,146.09,32.61]
[1723583627459,52.34296,146.18,146.09,32.61]
[1723583628771,6.8413,146.17,146.09,32.61]
[1723583630482,45.25098,146.16,146.09,32.61]
[1723583632463,45.25098,146.16,146.09,20.0]
[1723583633156,45.25098,146.16,146.06,12.61]
[1723583633157,0.37647,146.15,146.06,12.61]
[1723583633354,0.25098,146.14,146.07,20.0]
[1723583634161,0.25098,146.15,146.07,20.0]
[1723583634481,0.12549,146.18,146.1,12.61]
[1723583634678,45.50196,146.18,146.1,12.61]
[1723583634884,52.34286,146.18,146.1,12.61]
[1723583635266,7.13672151,146.17,146.1,12.61]
[1723583635480,7.13672151,146.17,146.11,1.36833765]
[1723583636082,0.12549,146.16,146.1,12.61]
[1723583636261,45.50196,146.16,146.1,12.61]
[1723583640092,52.34376,146.16,146.1,12.61]
[1723583640994,45.50196,146.16,146.1,12.61]
[1723583641467,52.34386,146.16,146.1,12.61]
[1723583641672,45.50196,146.16,146.1,12.61]
[1723583643477,6.8428,146.14,146.07,20.0]
[1723583643692,6.8428,146.14,146.08,20.0]
[1723583644665,0.12549,146.14,146.08,20.0]
[1723583644865,52.01147,146.16,146.09,12.61]
[1723583645399,0.12549,146.15,146.09,12.61]
[1723583645581,0.25098,146.15,146.09,12.61]
[1723583645895,7.38804833,146.15,146.09,12.61]
[1723583646195,7.38804833,146.15,146.1,1.36804031]
[1723583646498,14.23034833,146.15,146.09,12.61]
[1723583646798,45.25098,146.14,146.09,12.61]
[1723583649773,7.13706833,146.15,146.09,12.61]
[1723583650269,7.13706833,146.15,146.11,12.61]
[1723583652477,6.635,146.16,146.11,12.61]
[1723583653476,13.4768,146.16,146.09,12.61]
[1723583653679,0.37647,146.15,146.09,12.61]
[1723583653882,45.50196,146.15,146.09,12.61]
[1723583655475,45.50196,146.15,146.09,13.09292031]
[1723583656577,45.50196,146.15,146.09,13.625812]
[1723583656780,45.50196,146.15,146.09,12.61]
[1723583656781,52.34426,146.15,146.09,12.61]
[1723583657398,45.50196,146.15,146.09,12.61]
[1723583657986,52.34426,146.15,146.09,12.61]
[1723583658701,45.50196,146.15,146.09,12.61]
[1723583659905,52.34426,146.15,146.08,32.61]
[1723583660383,45.50196,146.15,146.08,32.61]
[1723583662996,52.63903254,146.15,146.08,32.61]
[1723583664808,52.63903254,146.15,146.09,1.36813378]
[1723583666115,7.13707254,146.15,146.1,12.61]
[1723583667793,6.635,146.16,146.1,12.61]
[1723583681119,6.635,146.16,146.11,1.36723289]
[1723583681707,6.635,146.16,146.08,20.0]
[1723583681708,7.13642183,146.17,146.12,12.61]
[1723583681912,16.3845,146.19,146.16,12.61]
[1723583683039,28.71496923,146.19,146.16,12.61]
[1723583683409,16.3845,146.19,146.16,12.61]
[1723583693670,6.1868,146.2,146.16,12.61]
[1723583700655,12.3293992,146.22,146.18,12.61]
[1723583700863,7.13433705,146.23,146.21,12.61]
[1723583701061,47.16519841,146.31,146.21,12.61]
[1723583701062,32.04893128,146.3,146.21,12.61]
[1723583701263,12.32651203,146.3,146.19,16.4934]
[1723583701547,6.8365,146.28,146.22,12.61]
[1723583701757,6.8366,146.27,146.22,12.61]
[1723583702056,6.8363,146.28,146.22,12.61]
[1723583702228,6.8361,146.29,146.22,12.61]
[1723583702737,6.8361,146.29,146.22,42.61]
[1723583704163,6.96179,146.28,146.22,42.61]
[1723583704335,6.8363,146.28,146.22,42.61]
[1723583706562,6.96129,146.29,146.22,42.61]
[1723583706751,45.25098,146.28,146.22,42.61]
[1723583707759,45.25098,146.28,146.22,12.61]
[1723583707956,0.12549,146.27,146.22,12.61]
[1723583708959,0.12549,146.27,146.19,16.4934]
[1723583709166,0.12549,146.27,146.21,12.61]
[1723583710876,0.25098,146.27,146.21,12.61]
[1723583711746,0.25098,146.27,146.19,16.4934]
[1723583711939,0.25098,146.27,146.17,12.61]
[1723583711940,0.12549,146.25,146.17,12.61]
[1723583712140,52.08858,146.25,146.17,12.61]
[1723583713148,45.25098,146.25,146.18,20.0]
[1723583715237,0.25098,146.24,146.18,20.0]
[1723583715663,45.25098,146.25,146.19,12.61]
[1723583715853,15.3846,146.26,146.19,12.61]
[1723583716677,15.3846,146.26,146.18,36.0821]
[1723583716678,15.3846,146.26,146.21,12.61]
[1723583716870,6.57059,146.27,146.21,12.61]
[1723583717072,7.13200186,146.28,146.21,12.61]
[1723583718061,7.13200186,146.28,146.23,12.61]
[1723583719281,15.7914,146.3,146.25,12.61]
[1723583720693,13.50905398,146.31,146.25,12.61]
[1723583721183,7.12985398,146.31,146.26,1.35939436]
[1723583721382,7.12985398,146.31,146.25,12.61]
[1723583721590,15.8192,146.33,146.27,12.61]
[1723583721890,22.95034309,146.33,146.27,12.61]
[1723583722784,29.78424309,146.33,146.27,12.61]
[1723583724372,6.95979,146.32,146.27,12.61]
[1723583724690,45.37647,146.31,146.25,12.61]
[1723583725787,0.12549,146.3,146.22,12.61]
[1723583725989,6.96079,146.3,146.22,12.61]
[1723583726211,52.21137,146.31,146.24,12.61]
[1723583726491,0.12549,146.3,146.24,12.61]
[1723583726890,6.96089,146.3,146.24,12.61]
[1723583727194,45.37647,146.29,146.24,12.61]
[1723583728501,0.12549,146.3,146.24,12.61]
[1723583728788,52.33716,146.3,146.24,12.61]
[1723583731093,45.50196,146.3,146.24,12.61]
[1723583731390,6.8349,146.31,146.24,12.61]
[1723583731594,0.12549,146.3,146.24,12.61]
[1723583732378,45.12549,146.3,146.24,12.61]
[1723583742193,51.96089,146.3,146.24,12.61]
[1723583742385,0.25098,146.29,146.24,12.61]
[1723583743585,7.08678,146.29,146.24,12.61]
[1723583743773,7.08678,146.29,146.22,12.61]
[1723583745006,7.1333953,146.31,146.28,15.1842]
[1723583745174,16.5179,146.37,146.28,15.1842]
[1723583745374,7.13564915,146.35,146.3,12.61]
[1723583746109,2.7227212,146.41,146.32,12.61]
[1723583746110,16.5179,146.41,146.32,12.61]
[1723583746310,7.13506419,146.38,146.32,12.61]
[1723583746477,28.83516603,146.41,146.32,12.61]
[1723583746681,6.8334,146.34,146.28,15.1842]
[1723583747004,6.8329,146.35,146.28,15.1842]
[1723583747185,13.96919761,146.36,146.29,12.61]
[1723583747501,0.12549,146.35,146.29,12.61]
[1723583747812,52.33486,146.35,146.28,15.1842]
[1723583748012,45.50196,146.35,146.28,15.1842]
[1723583750004,45.12549,146.35,146.28,15.1842]
[1723583750406,45.12549,146.35,146.29,12.61]
[1723583754085,7.13679761,146.36,146.31,12.61]
[1723583754307,6.8316,146.38,146.31,12.61]
[1723583754505,45.0,146.37,146.31,12.61]
[1723583754707,13.96715925,146.38,146.31,12.61]
[1723583754913,7.13555925,146.38,146.31,12.61]
[1723583755084,7.13555925,146.38,146.32,1.19706998]
[1723583755411,6.95659,146.39,146.33,12.61]
[1723583755583,45.0,146.38,146.33,12.61]
[1723583755780,13.9653885,146.4,146.33,12.61]
[1723583755987,13.9653885,146.4,146.34,1.19662594]
[1723583756186,13.9653885,146.4,146.33,12.61]
[1723583756187,7.1347885,146.4,146.33,12.61]
[1723583756417,23.3481,146.41,146.34,1.36643092]
[1723583756735,30.48501807,146.41,146.33,12.61]
[1723583757015,23.65481807,146.41,146.33,12.61]
[1723583757415,30.48491807,146.41,146.33,12.61]
[1723583757902,7.13691807,146.41,146.35,12.61]
[1723583758208,0.8264709,146.42,146.37,12.61]
[1723583760444,0.8264709,146.42,146.38,1.36581711]
[1723583760592,0.8264709,146.42,146.37,12.61]
[1723583761396,0.8264709,146.42,146.39,12.61]
[1723583761809,0.8264709,146.42,146.37,12.61]
[1723583762350,6.832,146.37,146.31,6.6157]
[1723583762624,12.73549,146.39,146.31,6.6157]
[1723583762799,6.8308,146.4,146.31,6.6157]
[1723583763000,6.8308,146.4,146.32,12.61]
[1723583763435,6.95709,146.38,146.31,6.6157]
[1723583763603,0.12549,146.38,146.31,7.98239141]
[1723583763804,45.12549,146.38,146.31,6.6157]
[1723583764117,51.95709,146.38,146.3,15.3761]
[1723583764332,51.95709,146.38,146.31,20.0]
[1723583764910,45.12549,146.38,146.31,20.0]
[1723583765451,51.95709,146.38,146.31,20.0]
[1723583765639,0.12549,146.37,146.31,20.0]
[1723583768125,0.25098,146.37,146.31,20.0]
[1723583768636,21.9644,146.39,146.31,20.0]
[1723583768934,6.1994,146.4,146.31,51.41]
[1723583769132,13.33550793,146.4,146.31,51.41]
[1723583769550,7.13610793,146.4,146.31,51.41]
[1723583770041,0.12549,146.41,146.31,51.41]
[1723583770230,45.25098,146.41,146.33,31.41]
[1723583770441,45.25098,146.41,146.34,1.366373]
[1723583770615,7.96184292,146.42,146.33,31.41]
[1723583770616,14.79154292,146.42,146.33,31.41]
[1723583771537,7.96184292,146.42,146.33,31.41]
[1723583771913,0.25098,146.41,146.33,31.41]
[1723583772520,45.25098,146.41,146.31,51.41]
[1723583773535,45.25098,146.41,146.32,0.12549]
[1723583774846,45.25098,146.41,146.33,31.41]
[1723583778943,0.12549,146.41,146.33,31.41]
[1723583779121,7.96184292,146.42,146.34,26.1512]
[1723583779325,0.8264709,146.42,146.35,31.41]
[1723583779730,0.8264709,146.42,146.35,47.9692]
[1723583780023,0.8264709,146.42,146.37,31.41]
[1723583780232,0.8264709,146.42,146.38,20.0]
[1723583781649,0.8264709,146.42,146.41,31.41]
[1723583782329,0.8264709,146.42,146.41,54.2953]
[1723583782522,0.8264709,146.42,146.41,119.79726]
[1723583783236,7.13281044,146.52,146.42,0.12549]
[1723583783442,6.8245,146.53,146.44,31.41]
[1723583783640,13.9605539,146.53,146.44,31.41]
[1723583783828,7.1360539,146.53,146.46,31.41]
[1723583784028,6.1155,146.56,146.46,31.41]
[1723583784240,6.1155,146.56,146.47,20.0]
[1723583784442,13.24852657,146.56,146.47,20.0]
[1723583784638,6.824,146.54,146.47,20.0]
[1723583784833,7.13302657,146.56,146.46,54.2953]
[1723583785030,0.8264709,146.57,146.48,31.41]
[1723583785031,7.6492709,146.57,146.48,31.41]
[1723583785324,0.8264709,146.57,146.48,31.41]
[1723583786729,7.6492709,146.57,146.48,31.41]
[1723583787048,6.8235,146.56,146.46,54.2953]
[1723583787246,6.8235,146.56,146.47,20.0]
[1723583788544,6.8236,146.55,146.47,20.0]
[1723583788948,7.9002509,146.57,146.47,20.0]
[1723583789329,1.0774509,146.57,146.47,20.0]
[1723583789560,6.8236,146.55,146.47,20.0]
[1723583789731,6.824,146.54,146.47,20.0]
[1723583790122,6.8254,146.51,146.43,22.2354]
[1723583790346,6.825,146.52,146.44,30.0]
[1723583790666,7.20097,146.53,146.44,30.0]
[1723583790826,0.25098,146.53,146.44,30.0]
[1723583791160,62.8837709,146.57,146.48,31.41]
[1723583791161,0.8264709,146.57,146.48,31.41]
[1723583791737,7.6490709,146.57,146.48,31.41]
[1723583792337,0.8264709,146.57,146.48,31.41]
[1723583792875,0.8264709,146.57,146.5,15.8144]
[1723583793071,0.8264709,146.57,146.51,20.53072245]
[1723583793369,0.8264709,146.57,146.52,0.53068622]
[1723583794471,0.8264709,146.57,146.51,20.0]
[1723583797464,7.6491709,146.57,146.51,20.0]
[1723583797674,7.6491709,146.57,146.46,47.8694]
[1723583797675,6.8232,146.56,146.46,47.8694]
[1723583797876,6.8232,146.56,146.47,20.0]
[1723583798092,0.8264709,146.57,146.47,20.0]
[1723583798256,7.6492709,146.57,146.47,20.0]
[1723583798876,45.0,146.56,146.47,20.0]
[1723583799049,45.0,146.56,146.48,31.41]
[1723583799250,51.8231,146.56,146.49,20.0]
[1723583799473,0.25098,146.55,146.49,20.0]
[1723583799782,0.25098,146.55,146.47,20.0]
[1723583800278,0.12549,146.56,146.47,20.0]
[1723583800455,0.12549,146.55,146.47,20.0]
[1723583800855,6.94929,146.55,146.47,20.0]
[1723583801272,0.12549,146.55,146.47,20.0]
[1723583801471,0.25098,146.55,146.47,20.0]
[1723583801865,0.25098,146.54,146.47,20.0]
[1723583802175,45.25098,146.54,146.47,20.0]
[1723583802351,45.25098,146.54,146.47,20.90035771]
[1723583803486,0.25098,146.54,146.47,20.0]
[1723583803783,0.25098,146.54,146.47,21.36472142]
[1723583804353,6.8255,146.51,146.42,16.0472]
[1723583804583,0.12549,146.5,146.43,30.0]
[1723583804884,6.8264,146.49,146.43,30.0]
[1723583805060,6.8268,146.48,146.43,30.0]
[1723583805250,6.8265,146.49,146.43,30.0]
[1723583805456,0.50196,146.48,146.38,47.4572]
[1723583805650,52.32906,146.48,146.38,47.4572]
[1723583806367,0.12549,146.46,146.38,16.0472]
[1723583806548,0.12549,146.46,146.36,36.85864718]
[1723583806549,7.20437,146.46,146.36,5.44864718]
[1723583806749,6.95339,146.46,146.34,47.4572]
[1723583807351,0.12549,146.47,146.34,47.4572]
[1723583807760,0.12549,146.47,146.36,31.41]
[1723583807962,0.12549,146.47,146.37,20.0]
[1723583811486,0.12549,146.47,146.38,45.12549]
[1723583811662,6.3763,146.49,146.39,20.0]
[1723583812994,6.8272,146.48,146.37,20.0]
[1723583813286,45.50196,146.47,146.38,0.47933382]
[1723583813782,45.50196,146.47,146.37,20.0]
[1723583814770,45.50196,146.47,146.38,0.48060677]
[1723583815167,0.50196,146.47,146.37,20.0]
[1723583815376,0.37647,146.47,146.38,45.0]
[1723583815564,7.51243511,146.47,146.39,20.0]
[1723583816386,14.33973511,146.47,146.39,20.0]
[1723583816590,14.33973511,146.47,146.37,20.0]
[1723583817362,7.51243511,146.47,146.37,20.0]
[1723583817588,22.6953,146.45,146.34,47.4572]
[1723583817785,22.6953,146.45,146.34,16.0472]
[1723583817786,52.33106,146.44,146.34,16.0472]
[1723583818090,52.33106,146.44,146.31,13.15562367]
[1723583818091,6.95519,146.42,146.31,36.85864718]
[1723583818278,0.12549,146.4,146.3,16.2868]
[1723583818682,7.20707,146.4,146.3,16.2868]
[1723583819390,15.9608,146.39,146.3,16.2868]
[1723583820270,15.9608,146.39,146.27,31.41]
[1723583820525,6.5915,146.36,146.26,27.67044718]
[1723583820790,0.25098,146.35,146.26,22.2218]
[1723583820991,6.5915,146.36,146.26,22.2218]
[1723583821171,6.5915,146.36,146.27,31.41]
[1723583821797,6.5915,146.36,146.28,45.0]
[1723583822191,6.5915,146.36,146.29,20.0]
[1723583822387,6.5915,146.36,146.3,0.93614731]
[1723583822808,6.5915,146.36,146.29,20.0]
[1723583824320,6.5915,146.36,146.26,22.34729]
[1723583824321,13.4239,146.36,146.28,20.0]
[1723583824606,6.833,146.35,146.27,20.0]
[1723583824911,13.4241,146.36,146.26,20.0]
[1723583825326,6.5915,146.36,146.26,20.0]
[1723583825885,13.71840414,146.36,146.26,20.0]
[1723583827287,45.37647,146.35,146.27,1.23633726]
[1723583827488,45.37647,146.35,146.26,20.0]
[1723583827690,52.20947,146.35,146.26,20.0]
[1723583827895,45.37647,146.35,146.26,20.0]
[1723583828510,13.71840414,146.36,146.27,0.12549]
[1723583828687,6.5915,146.36,146.27,45.25098]
[1723583828898,15.2547,146.35,146.28,20.0]
[1723583829092,15.38019,146.35,146.26,20.0]
[1723583832127,34.1484,146.42,146.26,20.0]
[1723583832128,21.9464,146.53,146.37,20.0]
[1723583832292,0.8264709,146.57,146.38,86.38717877]
[1723583832494,0.8264709,146.57,146.39,0.12549]
[1723583832495,31.41,146.52,146.39,0.12549]
[1723583832719,31.41,146.52,146.39,66.02504002]
[1723583832917,31.41,146.52,146.41,0.12549]
[1723583833218,38.2351,146.52,146.41,0.12549]
[1723583833519,38.2351,146.52,146.41,45.12549]
[1723583833713,38.2351,146.52,146.42,20.0]
[1723583833893,0.12549,146.51,146.42,20.0]
[1723583834093,45.37647,146.51,146.42,20.0]
[1723583834413,0.8264709,146.57,146.43,1.49087463]
[1723583834598,0.8264709,146.57,146.44,0.25098]
[1723583834796,6.8231,146.56,146.44,21.61617818]
[1723583834996,6.8231,146.56,146.44,51.61617818]
[1723583835296,39.21,146.53,146.44,50.0]
[1723583835498,39.21,146.53,146.44,20.0]
[1723583835723,45.50196,146.52,146.39,20.12549]
[1723583836026,45.50196,146.52,146.4,45.25098]
[1723583836200,6.8254,146.51,146.41,20.0]
[1723583836523,45.37647,146.5,146.41,20.0]
[1723583837329,45.37647,146.5,146.41,21.36563814]
[1723583838001,45.37647,146.5,146.41,20.0]
[1723583838411,0.37647,146.5,146.41,20.0]
[1723583838800,39.58647,146.5,146.41,20.0]
[1723583839016,58.17789,146.49,146.39,20.0]
[1723583839319,6.2257,146.49,146.4,0.12549]
[1723583839522,6.2257,146.49,146.39,20.0]
[1723583839738,0.12549,146.48,146.39,20.0]
[1723583839936,6.2257,146.49,146.4,0.12549]
[1723583840095,16.1753,146.5,146.4,0.12549]
[1723583840096,16.1753,146.5,146.4,45.50196]
[1723583840296,16.1753,146.5,146.42,0.12549]
[1723583840537,13.0503,146.53,146.42,45.37647]
[1723583840727,13.0503,146.53,146.43,20.0]
[1723583841099,6.825,146.52,146.43,20.0]
[1723583841415,39.21,146.52,146.38,6.0892]
[1723583841724,0.12549,146.49,146.39,0.12549]
[1723583841908,52.32846,146.49,146.38,6.0892]
[1723583842227,39.21,146.5,146.38,45.2992]
[1723583842396,6.8273,146.47,146.34,45.3051]
[1723583842594,39.21,146.48,146.34,45.3051]
[1723583842595,6.8282,146.45,146.34,6.0951]
[1723583842810,7.07888,146.46,146.34,6.0951]
[1723583843828,7.07888,146.46,146.35,0.12549]
[1723583844033,7.07888,146.46,146.35,20.25098]
[1723583845039,6.8288,146.44,146.35,20.25098]
[1723583845217,6.8288,146.44,146.36,45.0]
[1723583845425,6.8288,146.44,146.37,20.0]
[1723583846117,6.8283,146.45,146.37,20.0]
[1723583846510,6.8287,146.44,146.37,20.0]